[Event "Tournoi norme de MI"]
[Site "PARIS"]
[Date "????.??.??"]
[Round "7.3"]
[White "Bonte, Andrei-Mihai"]
[Black "Lazo, Andrei"]
[Result "0-1"]
[TimeControl "90mn+30s/c"]
[WhiteElo "2340"]
[BlackElo "2212"]

1. d4 {[%clk 01:30:55]} {[%emt 00:00:03]} d5 {[%clk 01:30:53]} {[%emt
00:00:08]} 2. Nf3 {[%clk 01:31:19]} {[%emt 00:00:05]} Nf6 {[%clk 01:31:14]}
{[%emt 00:00:09]} 3. c4 {[%clk 01:29:59]} {[%emt 00:01:50]} c6 {[%clk
01:31:39]} {[%emt 00:00:05]} 4. Nc3 {[%clk 01:30:20]} {[%emt 00:00:08]} a6
{[%clk 01:32:05]} {[%emt 00:00:05]} 5. g3 {[%clk 01:28:00]} {[%emt 00:02:49]}
dxc4 {[%clk 01:32:16]} {[%emt 00:00:20]} 6. Bg2 {[%clk 01:28:23]} {[%emt
00:00:07]} e6 {[%clk 01:31:49]} {[%emt 00:00:57]} 7. Ne5 {[%clk 01:27:06]}
{[%emt 00:01:46]} c5 {[%clk 01:27:32]} {[%emt 00:04:47]} 8. dxc5 {[%clk
01:22:09]} {[%emt 00:05:27]} Qxd1+ {[%clk 01:27:38]} {[%emt 00:00:23]} 9. Nxd1
{[%clk 01:22:31]} {[%emt 00:00:08]} Bxc5 {[%clk 01:28:04]} {[%emt 00:00:05]} 10.
O-O {[%clk 01:19:58]} {[%emt 00:03:02]} Ra7 {[%clk 01:27:53]} {[%emt 00:00:41]}
11. Nxc4 {[%clk 01:14:45]} {[%emt 00:05:42]} b5 {[%clk 01:27:33]} {[%emt
00:00:50]} 12. Bf4 {[%clk 01:11:40]} {[%emt 00:03:35]} Nbd7 {[%clk 01:27:16]}
{[%emt 00:00:47]} 13. Na5 {[%clk 01:04:08]} {[%emt 00:08:02]} e5 {[%clk
01:17:50]} {[%emt 00:09:55]} 14. Be3 {[%clk 00:57:29]} {[%emt 00:07:09]} Rc7
{[%clk 01:18:15]} {[%emt 00:00:05]} 15. Rc1 {[%clk 00:52:49]} {[%emt 00:05:09]}
Bb6 {[%clk 01:05:54]} {[%emt 00:12:51]} 16. Nc6 {[%clk 00:40:50]} {[%emt
00:12:29]} Ng4 {[%clk 00:37:08]} {[%emt 00:29:16]} 17. Bd2 {[%clk 00:34:26]}
{[%emt 00:06:54]} Bb7 {[%clk 00:35:51]} {[%emt 00:01:47]} 18. h3 {[%clk
00:31:18]} {[%emt 00:03:37]} Ngf6 {[%clk 00:36:17]} {[%emt 00:00:05]} 19. Ne3
{[%clk 00:31:33]} {[%emt 00:00:16]} Bxc6 {[%clk 00:31:09]} {[%emt 00:05:38]} 20.
Bxc6 {[%clk 00:31:22]} {[%emt 00:00:41]} O-O {[%clk 00:31:06]} {[%emt
00:00:34]} 21. Nf5 {[%clk 00:29:24]} {[%emt 00:02:27]} Bc5 {[%clk 00:29:51]}
{[%emt 00:01:45]} 22. Bg2 {[%clk 00:28:45]} {[%emt 00:01:09]} Rfc8 {[%clk
00:28:47]} {[%emt 00:01:34]} 23. b4 {[%clk 00:18:23]} {[%emt 00:10:51]} Bf8
{[%clk 00:29:01]} {[%emt 00:00:16]} 24. Bb7 {[%clk 00:18:30]} {[%emt 00:00:23]}
Rxc1 {[%clk 00:27:15]} {[%emt 00:02:17]} 25. Rxc1 {[%clk 00:18:54]} {[%emt
00:00:06]} Rxc1+ {[%clk 00:27:42]} {[%emt 00:00:03]} 26. Bxc1 {[%clk 00:19:16]}
{[%emt 00:00:08]} Nb8 {[%clk 00:27:10]} {[%emt 00:01:02]} 27. a3 {[%clk
00:18:58]} {[%emt 00:00:48]} g6 {[%clk 00:27:18]} {[%emt 00:00:21]} 28. Nh6+
{[%clk 00:16:00]} {[%emt 00:03:28]} Kg7 {[%clk 00:26:40]} {[%emt 00:01:08]} 29.
Ng4 {[%clk 00:14:55]} {[%emt 00:01:35]} Nfd7 {[%clk 00:26:04]} {[%emt
00:01:07]} 30. f4 {[%clk 00:14:39]} {[%emt 00:00:45]} f6 {[%clk 00:22:50]}
{[%emt 00:03:45]} 31. fxe5 {[%clk 00:15:02]} {[%emt 00:00:07]} fxe5 {[%clk
00:23:09]} {[%emt 00:00:10]} 32. Bd5 {[%clk 00:12:59]} {[%emt 00:02:33]} Bd6
{[%clk 00:20:34]} {[%emt 00:03:05]} 33. Bh6+ {[%clk 00:12:46]} {[%emt
00:00:42]} Kh8 {[%clk 00:21:02]} {[%emt 00:00:02]} 34. Kg2 {[%clk 00:11:58]}
{[%emt 00:01:18]} Nb6 {[%clk 00:20:37]} {[%emt 00:00:56]} 35. Be6 {[%clk
00:12:21]} {[%emt 00:00:07]} Nc6 {[%clk 00:20:10]} {[%emt 00:00:58]} 36. Nf6
{[%clk 00:08:02]} {[%emt 00:04:48]} Nd8 {[%clk 00:19:18]} {[%emt 00:01:22]} 37.
Ba2 {[%emt 00:01:18]} Nc4 {[%clk 00:19:03]} 38. Ne8 {[%clk 00:05:54]} {[%emt
00:02:35]} Bb8 {[%clk 00:18:55]} {[%emt 00:00:38]} 39. Kf3 {[%emt 00:04:36]}
Ne6 {[%clk 00:15:10]} 40. Ke4 {[%clk 00:06:06]} {[%emt 00:00:27]} Nd4 {[%clk
00:14:26]} {[%emt 00:01:14]} 41. Kd3 {[%clk 00:03:29]} {[%emt 00:03:07]} Nf5
{[%clk 00:14:26]} {[%emt 00:00:31]} 42. Bg5 {[%clk 00:02:52]} {[%emt 00:01:07]}
h6 {[%clk 00:14:23]} {[%emt 00:00:33]} 43. Bf6+ {[%clk 00:02:42]} {[%emt
00:00:40]} Kg8 {[%clk 00:14:15]} {[%emt 00:00:38]} 44. g4 {[%clk 00:02:54]}
{[%emt 00:00:18]} Ng3 {[%clk 00:07:20]} {[%emt 00:07:25]} 45. e4 {[%clk
00:00:49]} {[%emt 00:02:34]} Kf7 {[%clk 00:07:33]} {[%emt 00:00:17]} 46. Bh4
{[%clk 00:00:57]} {[%emt 00:00:22]} Nxe4 {[%clk 00:07:26]} {[%emt 00:00:38]} 47.
Kxe4 {[%clk 00:00:50]} {[%emt 00:00:37]} Kxe8 {[%clk 00:07:55]} {[%emt
00:00:01]} 48. a4 {[%clk 00:00:52]} {[%emt 00:00:28]} Nd6+ {[%clk 00:07:34]}
{[%emt 00:00:51]} 49. Kd5 {[%clk 00:01:16]} {[%emt 00:00:06]} bxa4 {[%clk
00:07:50]} {[%emt 00:00:14]} 50. Bf2 {[%clk 00:01:03]} {[%emt 00:00:42]} Nb5
{[%clk 00:05:55]} {[%emt 00:02:26]} 51. Kc4 {[%clk 00:01:27]} {[%emt 00:00:05]}
Ke7 {[%clk 00:05:35]} {[%emt 00:00:51]} 52. Be3 {[%clk 00:01:29]} {[%emt
00:00:27]} g5 {[%clk 00:05:34]} {[%emt 00:00:30]} 53. Bd2 {[%clk 00:01:39]}
{[%emt 00:00:21]} Ba7 {[%clk 00:05:37]} {[%emt 00:00:28]} 54. Kd5 {[%clk
00:02:03]} {[%emt 00:00:06]} Bd4 {[%clk 00:05:47]} {[%emt 00:00:20]} 55. Bc4
{[%clk 00:01:40]} {[%emt 00:00:52]} a3 {[%clk 00:05:28]} {[%emt 00:00:49]} 56.
Kc6 {[%clk 00:00:43]} {[%emt 00:01:27]} Nd6 {[%clk 00:04:45]} {[%emt 00:01:13]}
57. Ba2 {[%clk 00:00:44]} {[%emt 00:00:29]} Ne4 {[%clk 00:05:03]} {[%emt
00:00:12]} 58. Bc1 {[%clk 00:00:58]} {[%emt 00:00:16]} Bb2 {[%clk 00:05:02]}
{[%emt 00:00:31]} 59. Be3 {[%clk 00:00:48]} {[%emt 00:00:40]} Nc3 {[%clk
00:05:22]} {[%emt 00:00:11]} 60. Bc5+ {[%clk 00:00:39]} {[%emt 00:00:38]} Kf6
{[%clk 00:05:39]} {[%emt 00:00:13]} 61. Bc4 {[%clk 00:00:36]} {[%emt 00:00:33]}
a2 {[%clk 00:05:46]} {[%emt 00:00:24]} 62. Kd7 {[%clk 00:00:39]} {[%emt
00:00:28]} a1=Q {[%clk 00:05:18]} {[%emt 00:00:57]} 63. Be7+ {[%clk 00:01:02]}
{[%emt 00:00:06]} Kg7 {[%clk 00:05:39]} {[%emt 00:00:09]} 64. Ke8 {[%clk
00:01:16]} {[%emt 00:00:16]} Qa4+ {[%clk 00:05:50]} {[%emt 00:00:19]} 0-1

[Event "Tournoi norme de MI"]
[Site "PARIS"]
[Date "????.??.??"]
[Round "7.4"]
[White "Roshka, Yevgeniy"]
[Black "Navrotescu, Andreea"]
[Result "1-0"]
[TimeControl "90mn+30s/c"]
[WhiteElo "2501"]
[BlackElo "2228"]

1. d4 {[%clk 01:30:38]} {[%emt 00:00:12]} d5 {[%clk 01:30:58]} {[%emt
00:00:11]} 2. c4 {[%clk 01:31:03]} {[%emt 00:00:06]} e6 {[%clk 01:31:23]}
{[%emt 00:00:05]} 3. Nf3 {[%clk 01:31:30]} {[%emt 00:00:03]} Nf6 {[%clk
01:31:47]} {[%emt 00:00:06]} 4. cxd5 {[%clk 01:29:35]} {[%emt 00:02:25]} exd5
{[%clk 01:32:09]} {[%emt 00:00:08]} 5. Nc3 {[%clk 01:30:03]} {[%emt 00:00:03]}
c6 {[%clk 01:27:53]} {[%emt 00:04:46]} 6. Bg5 {[%clk 01:29:44]} {[%emt
00:00:49]} Be7 {[%clk 01:26:26]} {[%emt 00:01:57]} 7. Qc2 {[%clk 01:30:04]}
{[%emt 00:00:10]} g6 {[%clk 01:26:37]} {[%emt 00:00:19]} 8. e3 {[%clk
01:28:47]} {[%emt 00:01:48]} Bf5 {[%clk 01:26:58]} {[%emt 00:00:09]} 9. Bd3
{[%clk 01:26:30]} {[%emt 00:02:47]} Bxd3 {[%clk 01:27:16]} {[%emt 00:00:12]} 10.
Qxd3 {[%clk 01:26:56]} {[%emt 00:00:04]} O-O {[%clk 01:27:16]} {[%emt
00:00:30]} 11. O-O {[%clk 01:26:30]} {[%emt 00:00:56]} Re8 {[%clk 01:23:29]}
{[%emt 00:04:17]} 12. Nd2 {[%clk 01:19:45]} {[%emt 00:07:15]} Nh5 {[%clk
01:18:33]} {[%emt 00:05:25]} 13. Bxe7 {[%clk 01:18:53]} {[%emt 00:01:22]} Qxe7
{[%clk 01:18:58]} {[%emt 00:00:04]} 14. e4 {[%clk 01:13:20]} {[%emt 00:06:04]}
dxe4 {[%clk 01:17:22]} {[%emt 00:02:07]} 15. Ndxe4 {[%clk 01:13:44]} {[%emt
00:00:06]} Nd7 {[%clk 01:15:46]} {[%emt 00:02:06]} 16. Qd2 {[%clk 01:08:42]}
{[%emt 00:05:32]} Ndf6 {[%clk 01:10:52]} {[%emt 00:05:23]} 17. f3 {[%clk
01:08:32]} {[%emt 00:00:40]} Rad8 {[%clk 01:09:53]} {[%emt 00:01:29]} 18. Rad1
{[%clk 01:08:48]} {[%emt 00:00:14]} Nd5 {[%clk 00:57:54]} {[%emt 00:12:30]} 19.
Rfe1 {[%emt 00:04:40]} Nhf4 {[%clk 00:54:23]} 20. g3 {[%clk 01:07:07]} {[%emt
00:02:02]} Ne6 {[%clk 00:53:27]} {[%emt 00:01:26]} 21. Nc5 {[%clk 01:05:30]}
{[%emt 00:02:07]} Qf6 {[%clk 00:44:26]} {[%emt 00:09:31]} 22. N5e4 {[%clk
00:52:21]} {[%emt 00:13:39]} Qxf3 {[%clk 00:29:40]} {[%emt 00:15:17]} 23. Qh6
{[%clk 00:50:56]} {[%emt 00:01:55]} Kh8 {[%clk 00:29:49]} {[%emt 00:00:21]} 24.
Rd2 {[%clk 00:44:13]} {[%emt 00:07:13]} Ndf4 {[%clk 00:23:14]} {[%emt
00:07:05]} 25. gxf4 {[%clk 00:44:31]} {[%emt 00:00:12]} Nxd4 {[%clk 00:18:19]}
{[%emt 00:05:25]} 26. Rf2 {[%clk 00:33:20]} {[%emt 00:11:41]} Qg4+ {[%clk
00:14:28]} {[%emt 00:04:21]} 27. Kf1 {[%clk 00:33:03]} {[%emt 00:00:47]} Nf3
{[%clk 00:09:17]} {[%emt 00:05:41]} 28. Rg2 {[%clk 00:33:28]} {[%emt 00:00:05]}
Qe6 {[%clk 00:06:30]} {[%emt 00:03:17]} 29. Re3 {[%clk 00:23:07]} {[%emt
00:10:51]} Nd2+ {[%clk 00:04:58]} {[%emt 00:02:01]} 30. Rxd2 {[%clk 00:22:50]}
{[%emt 00:00:48]} Rxd2 {[%clk 00:05:20]} {[%emt 00:00:08]} 31. Nf6 {[%clk
00:21:47]} {[%emt 00:01:33]} Rf2+ {[%clk 00:02:04]} {[%emt 00:03:46]} 32. Kg1
{[%clk 00:22:11]} {[%emt 00:00:05]} 1-0

[Event "Tournoi norme de MI"]
[Site "PARIS"]
[Date "????.??.??"]
[Round "7.1"]
[White "Laurent, Julien G."]
[Black "Duboue, Peio"]
[Result "1/2-1/2"]
[TimeControl "90mn+30s/c"]
[WhiteElo "2199"]
[BlackElo "2462"]

1. d4 {[%emt 00:01:21]} d5 {[%clk 01:29:37]} {[%emt 00:00:07]} 2. c4 {[%clk
01:31:15]} {[%emt 00:00:09]} dxc4 {[%clk 01:30:04]} {[%emt 00:00:03]} 3. Nf3
{[%clk 01:31:38]} {[%emt 00:00:08]} Nf6 {[%clk 01:30:30]} {[%emt 00:00:04]} 4.
e3 {[%clk 01:32:01]} {[%emt 00:00:07]} e6 {[%clk 01:30:55]} {[%emt 00:00:05]} 5.
Bxc4 {[%clk 01:32:21]} {[%emt 00:00:10]} c5 {[%clk 01:31:19]} {[%emt 00:00:06]}
6. O-O {[%clk 01:32:41]} {[%emt 00:00:09]} Nc6 {[%clk 01:31:43]} {[%emt
00:00:07]} 7. Qe2 {[%clk 01:32:51]} {[%emt 00:00:20]} a6 {[%clk 01:32:02]}
{[%emt 00:00:11]} 8. a4 {[%clk 01:33:11]} {[%emt 00:00:10]} cxd4 {[%clk
01:32:03]} {[%emt 00:00:29]} 9. Rd1 {[%clk 01:33:34]} {[%emt 00:00:07]} Be7
{[%clk 01:32:27]} {[%emt 00:00:06]} 10. exd4 {[%clk 01:33:49]} {[%emt
00:00:15]} O-O {[%clk 01:32:48]} {[%emt 00:00:08]} 11. Nc3 {[%clk 01:34:10]}
{[%emt 00:00:09]} Nb4 {[%clk 01:33:12]} {[%emt 00:00:06]} 12. Ne5 {[%clk
01:31:48]} {[%emt 00:02:52]} Bd7 {[%clk 01:33:36]} {[%emt 00:00:06]} 13. d5
{[%clk 01:23:54]} {[%emt 00:08:25]} exd5 {[%clk 01:32:49]} {[%emt 00:01:17]} 14.
Bxd5 {[%clk 01:23:59]} {[%emt 00:00:25]} Nbxd5 {[%clk 01:32:51]} {[%emt
00:00:28]} 15. Nxd5 {[%clk 01:24:13]} {[%emt 00:00:17]} Nxd5 {[%clk 01:33:16]}
{[%emt 00:00:04]} 16. Rxd5 {[%clk 01:24:23]} {[%emt 00:00:20]} Bg4 {[%clk
01:33:34]} {[%emt 00:00:11]} 17. Qc4 {[%clk 00:44:06]} {[%emt 00:40:47]} Qxd5
{[%clk 01:33:58]} {[%emt 00:00:07]} 18. Qxd5 {[%clk 00:44:34]} {[%emt
00:00:02]} Rad8 {[%clk 01:34:21]} {[%emt 00:00:07]} 19. Qb3 {[%clk 00:45:01]}
{[%emt 00:00:03]} Rd1+ {[%clk 01:34:46]} {[%emt 00:00:04]} 20. Qxd1 {[%clk
00:45:27]} {[%emt 00:00:05]} Bxd1 {[%clk 01:35:14]} {[%emt 00:00:03]} 21. Bg5
{[%clk 00:45:35]} {[%emt 00:00:21]} Bxg5 {[%clk 01:35:42]} {[%emt 00:00:02]} 22.
Rxd1 {[%clk 00:46:03]} {[%emt 00:00:03]} Rc8 {[%clk 01:34:49]} {[%emt
00:01:22]} 23. g3 {[%clk 00:43:50]} {[%emt 00:02:42]} Bf6 {[%clk 01:32:03]}
{[%emt 00:03:17]} 24. Rd5 {[%clk 00:39:18]} {[%emt 00:05:03]} g6 {[%clk
01:14:40]} {[%emt 00:17:52]} 25. Kg2 {[%clk 00:27:47]} {[%emt 00:12:01]} Rc2
{[%clk 01:08:10]} {[%emt 00:07:00]} 26. b4 {[%clk 00:21:06]} {[%emt 00:07:11]}
Bxe5 {[%clk 01:06:44]} {[%emt 00:01:57]} 27. Rxe5 {[%clk 00:21:34]} {[%emt
00:00:02]} Rc4 {[%clk 01:07:09]} {[%emt 00:00:05]} 28. b5 {[%clk 00:21:48]}
{[%emt 00:00:16]} Rxa4 {[%clk 01:07:34]} {[%emt 00:00:05]} 29. bxa6 {[%clk
00:22:12]} {[%emt 00:00:06]} Rxa6 {[%clk 01:06:13]} {[%emt 00:01:51]} 30. Re7
{[%clk 00:21:55]} {[%emt 00:00:47]} Rb6 {[%clk 01:06:06]} {[%emt 00:00:38]} 31.
g4 {[%clk 00:20:29]} {[%emt 00:01:55]} g5 {[%clk 00:43:09]} {[%emt 00:23:26]}
32. h4 {[%clk 00:20:55]} {[%emt 00:00:05]} h6 {[%clk 00:43:25]} {[%emt
00:00:15]} 33. Rc7 {[%clk 00:19:59]} {[%emt 00:01:26]} Kg7 {[%clk 00:43:00]}
{[%emt 00:00:55]} 34. h5 {[%clk 00:17:43]} {[%emt 00:02:46]} Kf6 {[%clk
00:42:46]} {[%emt 00:00:44]} 35. f3 {[%clk 00:17:25]} {[%emt 00:00:48]} Ke6
{[%clk 00:42:41]} {[%emt 00:00:34]} 36. Kg3 {[%clk 00:17:16]} {[%emt 00:00:39]}
Rb2 {[%clk 00:26:02]} {[%emt 00:17:09]} 37. Kh3 {[%clk 00:16:54]} {[%emt
00:00:52]} Kf6 {[%clk 00:25:55]} {[%emt 00:00:38]} 38. Kg3 {[%clk 00:16:42]}
{[%emt 00:00:41]} Kg7 {[%clk 00:25:41]} {[%emt 00:00:44]} 39. Rd7 {[%clk
00:15:51]} {[%emt 00:01:21]} b5 {[%clk 00:25:50]} {[%emt 00:00:21]} 40. Rb7
{[%clk 00:15:59]} {[%emt 00:00:21]} b4 {[%clk 00:26:19]} {[%emt 00:00:01]} 41.
Kh3 {[%clk 00:15:15]} {[%emt 00:01:14]} b3 {[%clk 00:26:43]} {[%emt 00:00:07]}
42. Kg3 {[%clk 00:15:42]} {[%emt 00:00:03]} Rb1 {[%clk 00:26:59]} {[%emt
00:00:15]} 43. Kg2 {[%clk 00:15:54]} {[%emt 00:00:17]} Kf8 {[%clk 00:27:22]}
{[%emt 00:00:07]} 44. Rb6 {[%clk 00:16:06]} {[%emt 00:00:18]} Kg7 {[%clk
00:26:52]} {[%emt 00:01:00]} 45. Rb7 {[%clk 00:16:35]} {[%emt 00:00:02]} Kg8
{[%clk 00:25:52]} {[%emt 00:01:30]} 46. Rb8+ {[%clk 00:16:34]} {[%emt
00:00:30]} Kh7 {[%clk 00:26:12]} {[%emt 00:00:10]} 47. Rb7 {[%clk 00:16:57]}
{[%emt 00:00:07]} Kg7 {[%clk 00:26:40]} {[%emt 00:00:02]} 48. Kh2 {[%clk
00:13:46]} {[%emt 00:03:42]} Kf8 {[%clk 00:26:10]} {[%emt 00:01:00]} 49. Rb6
{[%clk 00:14:00]} {[%emt 00:00:15]} Kg7 {[%clk 00:26:05]} {[%emt 00:00:35]} 50.
Rb7 {[%clk 00:14:25]} {[%emt 00:00:05]} Kf8 {[%clk 00:26:09]} {[%emt 00:00:26]}
51. Rb6 {[%clk 00:14:54]} {[%emt 00:00:02]} b2 {[%clk 00:26:33]} {[%emt
00:00:06]} 52. Kg2 {[%clk 00:14:30]} {[%emt 00:00:53]} Ke7 {[%clk 00:27:02]}
{[%emt 00:00:01]} 53. Rb7+ {[%clk 00:13:55]} {[%emt 00:01:05]} Kd6 {[%clk
00:27:18]} {[%emt 00:00:13]} 54. Rb5 {[%clk 00:14:06]} {[%emt 00:00:18]} Kc6
{[%clk 00:27:04]} {[%emt 00:00:45]} 55. Rb8 {[%clk 00:14:29]} {[%emt 00:00:07]}
Kc5 {[%clk 00:27:23]} {[%emt 00:00:11]} 56. Rb7 {[%clk 00:13:52]} {[%emt
00:01:06]} Kd4 {[%clk 00:27:39]} {[%emt 00:00:14]} 57. Rd7+ {[%clk 00:13:46]}
{[%emt 00:00:36]} Ke3 {[%clk 00:28:07]} {[%emt 00:00:01]} 58. Re7+ {[%clk
00:14:07]} {[%emt 00:00:09]} Kd3 {[%clk 00:28:31]} {[%emt 00:00:07]} 59. Rd7+
{[%clk 00:14:33]} {[%emt 00:00:04]} Kc4 {[%clk 00:28:52]} {[%emt 00:00:09]} 60.
Rc7+ {[%clk 00:14:49]} {[%emt 00:00:14]} Kd5 {[%clk 00:29:11]} {[%emt
00:00:11]} 61. Rb7 {[%clk 00:14:57]} {[%emt 00:00:19]} f5 {[%clk 00:24:19]}
{[%emt 00:05:24]} 62. gxf5 {[%clk 00:14:53]} {[%emt 00:00:35]} Ke5 {[%clk
00:24:43]} {[%emt 00:00:06]} 63. Rb5+ {[%clk 00:14:59]} {[%emt 00:00:23]} Kf6
{[%clk 00:25:12]} {[%emt 00:00:02]} 64. Kh2 {[%clk 00:13:52]} {[%emt 00:01:37]}
Rf1 {[%clk 00:22:28]} {[%emt 00:03:14]} 65. Rxb2 {[%clk 00:14:16]} {[%emt
00:00:07]} Rxf3 {[%clk 00:22:07]} {[%emt 00:00:51]} 66. Rb6+ {[%clk 00:14:40]}
{[%emt 00:00:06]} Kg7 {[%clk 00:22:19]} {[%emt 00:00:18]} 67. Rb7+ {[%clk
00:15:05]} {[%emt 00:00:05]} Kf6 {[%clk 00:22:38]} {[%emt 00:00:12]} 68. Rb6+
{[%clk 00:15:31]} {[%emt 00:00:04]} Kxf5 {[%clk 00:23:01]} {[%emt 00:00:07]} 69.
Rxh6 {[%clk 00:15:55]} {[%emt 00:00:06]} Kg4 {[%clk 00:23:09]} {[%emt
00:00:22]} 70. Ra6 {[%clk 00:14:37]} {[%emt 00:01:48]} Kxh5 {[%clk 00:23:32]}
{[%emt 00:00:06]} 71. Kg2 {[%clk 00:15:06]} {[%emt 00:00:01]} Re3 {[%clk
00:23:51]} {[%emt 00:00:11]} 72. Ra1 {[%clk 00:15:31]} {[%emt 00:00:05]} Kh4
{[%clk 00:24:11]} {[%emt 00:00:09]} 73. Kg1 {[%clk 00:16:00]} {[%emt 00:00:02]}
g4 {[%clk 00:24:26]} {[%emt 00:00:15]} 74. Rb1 {[%clk 00:16:29]} {[%emt
00:00:01]} 1/2-1/2



[ePGN "0.1;DGT LiveChess/2.2.5"]

[Event "Tournoi norme de MI"]
[Site "PARIS"]
[Date "????.??.??"]
[Round "8.5"]
[White "Navrotescu, Andreea"]
[Black "Laurent, Julien G."]
[Result "1-0"]
[TimeControl "90mn+30s/c"]
[WhiteElo "2228"]
[BlackElo "2199"]

1. c4 {[%clk 01:30:57]} {[%emt 00:00:02]} e6 {[%clk 01:29:05]} {[%emt
00:01:49]} 2. Nc3 {[%clk 01:31:19]} {[%emt 00:00:13]} d5 {[%clk 01:29:27]}
{[%emt 00:00:08]} 3. d4 {[%clk 01:31:42]} {[%emt 00:00:07]} Nf6 {[%clk
01:29:51]} {[%emt 00:00:06]} 4. Nf3 {[%clk 01:30:30]} {[%emt 00:01:42]} Be7
{[%clk 01:30:04]} {[%emt 00:00:16]} 5. Bf4 {[%clk 01:30:52]} {[%emt 00:00:09]}
O-O {[%clk 01:30:22]} {[%emt 00:00:12]} 6. e3 {[%clk 01:31:13]} {[%emt
00:00:09]} c5 {[%clk 01:25:28]} {[%emt 00:05:24]} 7. dxc5 {[%clk 01:31:30]}
{[%emt 00:00:14]} Bxc5 {[%clk 01:25:26]} {[%emt 00:00:32]} 8. a3 {[%clk
01:31:39]} {[%emt 00:00:21]} Be7 {[%clk 01:17:06]} {[%emt 00:08:51]} 9. Qc2
{[%clk 01:28:35]} {[%emt 00:03:33]} Qa5 {[%clk 01:16:00]} {[%emt 00:01:37]} 10.
Rd1 {[%clk 01:27:17]} {[%emt 00:01:47]} Nc6 {[%clk 01:14:32]} {[%emt 00:01:58]}
11. Be2 {[%clk 01:18:24]} {[%emt 00:09:23]} dxc4 {[%clk 01:07:52]} {[%emt
00:07:10]} 12. Bxc4 {[%clk 01:18:37]} {[%emt 00:00:18]} e5 {[%clk 00:31:01]}
{[%emt 00:37:21]} 13. Bg3 {[%clk 01:18:55]} {[%emt 00:00:11]} Bg4 {[%clk
00:31:18]} {[%emt 00:00:13]} 14. O-O {[%clk 01:18:45]} {[%emt 00:00:40]} Rad8
{[%clk 00:25:03]} {[%emt 00:06:44]} 15. Rxd8 {[%clk 01:17:55]} {[%emt
00:01:21]} Bxd8 {[%clk 00:24:54]} {[%emt 00:00:39]} 16. Ng5 {[%clk 01:14:53]}
{[%emt 00:03:31]} Bh5 {[%clk 00:22:39]} {[%emt 00:02:45]} 17. Qb3 {[%clk
00:56:48]} {[%emt 00:18:36]} Qb6 {[%clk 00:21:19]} {[%emt 00:01:50]} 18. Qa2
{[%clk 00:56:56]} {[%emt 00:00:22]} h6 {[%clk 00:17:38]} {[%emt 00:04:11]} 19.
Nf3 {[%clk 00:56:13]} {[%emt 00:01:12]} Re8 {[%clk 00:14:38]} {[%emt 00:03:31]}
20. b4 {[%clk 00:56:01]} {[%emt 00:00:42]} a6 {[%clk 00:14:51]} {[%emt
00:00:17]} 21. Nh4 {[%clk 00:53:30]} {[%emt 00:03:01]} Bc7 {[%clk 00:11:24]}
{[%emt 00:03:57]} 22. Nf5 {[%clk 00:50:37]} {[%emt 00:03:23]} Ne7 {[%clk
00:10:53]} {[%emt 00:01:02]} 23. Nh4 {[%clk 00:45:32]} {[%emt 00:05:35]} g5
{[%clk 00:06:36]} {[%emt 00:04:47]} 24. Nf3 {[%clk 00:45:42]} {[%emt 00:00:19]}
Nf5 {[%clk 00:07:02]} {[%emt 00:00:05]} 25. Nd2 {[%clk 00:44:44]} {[%emt
00:01:27]} Bg6 {[%clk 00:05:41]} {[%emt 00:01:52]} 26. Nd5 {[%clk 00:38:37]}
{[%emt 00:06:38]} Nxd5 {[%clk 00:06:07]} {[%emt 00:00:04]} 27. Bxd5 {[%clk
00:38:59]} {[%emt 00:00:08]} Kg7 {[%clk 00:05:10]} {[%emt 00:01:27]} 28. Ne4
{[%clk 00:36:26]} {[%emt 00:03:03]} Nxg3 {[%clk 00:04:18]} {[%emt 00:01:22]} 29.
Nxg3 {[%clk 00:36:00]} {[%emt 00:00:56]} e4 {[%clk 00:03:53]} {[%emt 00:00:56]}
30. Rc1 {[%clk 00:33:41]} {[%emt 00:02:49]} Re7 {[%clk 00:03:50]} {[%emt
00:00:32]} 31. Qc4 {[%clk 00:31:36]} {[%emt 00:02:34]} f5 {[%clk 00:02:56]}
{[%emt 00:01:25]} 32. Qc3+ {[%clk 00:30:59]} {[%emt 00:01:08]} Qf6 {[%clk
00:03:20]} {[%emt 00:00:06]} 33. Qc4 {[%clk 00:24:33]} {[%emt 00:06:55]} h5
{[%clk 00:03:17]} {[%emt 00:00:33]} 34. Ne2 {[%clk 00:23:50]} {[%emt 00:01:13]}
Qe5 {[%clk 00:02:56]} {[%emt 00:00:51]} 35. g3 {[%clk 00:22:28]} {[%emt
00:01:52]} b5 {[%clk 00:02:48]} {[%emt 00:00:38]} 36. Qa2 {[%clk 00:20:59]}
{[%emt 00:01:59]} Be8 {[%clk 00:02:29]} {[%emt 00:00:50]} 37. Nd4 {[%clk
00:19:59]} {[%emt 00:01:30]} a5 {[%clk 00:00:50]} {[%emt 00:02:09]} 38. Be6
{[%clk 00:19:52]} {[%emt 00:00:36]} Bf7 {[%clk 00:00:39]} {[%emt 00:00:41]} 39.
Rc5 {[%clk 00:19:35]} {[%emt 00:00:47]} 1-0